bitfinex/quotes_ETHUSD_20250622
["timestamp","ask_amount","ask_price","bid_price","bid_amount"]
[1750619506681,0.7804,2188.5,2188.1,4.57005623]
[1750619506837,10.7804,2188.5,2188.1,4.62805623]
[1750619508170,10.7804,2188.5,2188.2,4.5699249]
[1750619508356,10.7804,2188.5,2188.1,4.62808571]
[1750619509776,0.7804,2188.5,2188.1,5.48993074]
[1750619510076,0.7804,2188.5,2188.3,4.62772184]
[1750619510668,0.7804,2188.5,2188.3,0.058]
[1750619511070,0.7804,2188.5,2188.1,4.57008101]
[1750619511366,0.7804,2188.5,2188.1,4.62808101]
[1750619512227,0.7804,2188.5,2187.8,2.481]
[1750619512228,0.7804,2188.5,2187.8,4.57080171]
[1750619512435,0.8414,2188.5,2187.8,7.00080171]
[1750619512749,0.8414,2188.5,2187.8,2.43]
[1750619513147,0.8414,2188.5,2187.8,7.04649463]
[1750619513344,0.7804,2188.5,2187.8,2.43]
[1750619513553,0.061,2188.4,2187.8,2.43]
[1750619513857,0.061,2188.4,2187.7,4.62778891]
[1750619514054,0.23861215,2188.3,2187.8,2.43]
[1750619514271,0.29961215,2188.3,2187.9,0.04570121]
[1750619514475,0.23861215,2188.3,2188.0,4.62707911]
[1750619514775,0.23861215,2188.3,2188.0,0.0568]
[1750619515268,0.23861215,2188.3,2187.9,4.61619795]
[1750619515476,0.23861215,2188.3,2187.8,2.43]
[1750619515477,0.061,2188.1,2187.5,12.18897812]
[1750619515635,8.35,2188.1,2187.5,10.981]
[1750619515834,8.35,2188.1,2187.4,2.43]
[1750619516237,8.35,2188.1,2187.4,7.00162852]
[1750619517374,8.35,2188.1,2187.4,2.43]
[1750619517870,0.8009,2187.9,2187.3,4.57177904]
[1750619518075,0.8009,2187.9,2187.3,5.48746421]
[1750619518373,0.8009,2187.9,2187.3,0.91568517]
[1750619518546,0.8009,2187.9,2187.3,5.48751212]
[1750619518944,0.8009,2187.9,2187.3,0.91568517]
[1750619519171,0.8009,2187.9,2187.1,0.0128966]
[1750619519368,0.8009,2187.9,2187.1,0.05861096]
[1750619519544,0.8009,2187.9,2187.5,4.57128462]
[1750619519748,0.8009,2187.9,2187.4,4.57152171]
[1750619520054,0.8619,2187.9,2187.3,4.57183768]
[1750619520558,0.7843,2187.7,2187.2,4.61763649]
[1750619520754,0.8453,2187.7,2187.1,4.58509965]
[1750619521149,0.8453,2187.7,2187.1,0.0696966]
[1750619521481,17.91,2188.0,2187.1,0.0696966]
[1750619521482,0.7843,2187.5,2187.1,0.0128966]
[1750619521684,0.55,2187.4,2187.1,0.0128966]
[1750619521845,0.7843,2187.3,2187.1,0.0128966]
[1750619522042,0.061,2187.2,2187.1,0.0128966]
[1750619522474,0.611,2187.2,2187.1,0.0128966]
[1750619523179,0.061,2187.2,2187.1,0.0128966]
[1750619523383,0.7843,2187.3,2187.1,0.0128966]
[1750619523543,1.374505,2188.0,2187.1,0.0128966]
[1750619523884,9.1019,2188.0,2187.2,0.0568]
[1750619524085,10.061,2187.9,2187.2,4.62873446]
[1750619524245,0.8159,2187.8,2187.2,0.0568]
[1750619524445,0.8159,2187.8,2187.4,4.57152357]
[1750619524754,0.8159,2187.8,2187.5,4.57130425]
[1750619524962,0.8159,2187.8,2187.5,0.0568]
[1750619525168,0.8159,2187.8,2187.5,4.62813547]
[1750619526147,0.8159,2187.8,2187.5,1.21989013]
[1750619526457,0.7685,2188.1,2187.5,1.16309013]
[1750619526794,0.7685,2188.4,2187.9,4.57042465]
[1750619527084,0.7685,2188.4,2188.0,4.5703593]
[1750619527688,0.23851461,2188.6,2188.1,0.04569986]
[1750619528003,0.23851461,2188.6,2188.2,4.56982148]
[1750619528200,10.7564,2188.7,2188.2,4.56982148]
[1750619528684,10.7564,2188.7,2187.9,3.2254]
[1750619528880,0.6,2188.5,2188.1,4.57003753]
[1750619529986,0.6,2188.5,2188.1,4.57013393]
[1750619530163,0.6,2188.5,2188.0,4.89280309]
[1750619530358,0.611,2188.6,2187.9,7.00042638]
[1750619531092,0.611,2188.6,2187.9,4.5705928]
[1750619531286,0.611,2188.6,2188.0,4.5702358]
[1750619531668,0.611,2188.6,2187.9,4.57050514]
[1750619532190,0.611,2188.6,2188.0,4.5703676]
[1750619532391,0.611,2188.6,2187.8,7.05751924]
[1750619532392,0.55,2188.4,2187.8,4.57077926]
[1750619532598,8.282,2188.3,2187.8,4.57077926]
[1750619532806,8.343,2188.3,2187.8,4.57077926]
[1750619533007,8.343,2188.3,2187.9,4.57047743]
[1750619533008,8.282,2188.3,2187.9,4.57047743]
[1750619533493,8.282,2188.3,2187.8,4.5706911]
[1750619533684,8.343,2188.3,2187.8,4.5706911]
[1750619534002,0.869,2188.2,2187.7,2.43]
[1750619534307,0.808,2188.2,2187.7,4.18150299]
[1750619534611,0.808,2188.2,2187.9,4.57046764]
[1750619534760,0.808,2188.2,2187.8,4.57069151]
[1750619535271,0.808,2188.2,2187.8,4.62749151]
[1750619535472,0.808,2188.2,2187.8,0.0568]
[1750619535675,10.869,2188.2,2187.7,0.04570482]
[1750619535879,0.061,2188.1,2187.3,4.57184656]
[1750619536402,0.061,2188.1,2187.4,4.57153363]
[1750619537276,0.061,2188.1,2187.3,7.00176771]
[1750619537479,0.061,2188.1,2187.4,4.5715331]
[1750619537791,0.8053,2188.0,2187.4,4.5715331]
[1750619538099,0.8053,2188.0,2187.4,5.7345639]
[1750619538995,0.8053,2188.0,2187.4,1.1630308]
[1750619539698,0.8053,2188.0,2187.4,5.73466431]
[1750619540112,0.8053,2188.0,2187.4,1.1630308]
[1750619541123,0.8053,2188.0,2187.4,5.73465126]
[1750619541315,0.8053,2188.0,2187.5,2.27363813]
[1750619541616,0.8053,2188.0,2187.5,2.33043813]
[1750619541777,0.8663,2188.0,2187.5,2.33043813]
[1750619543326,0.8053,2188.0,2187.5,6.94751541]
[1750619543491,0.8638,2188.0,2187.5,0.059]
[1750619543821,0.8638,2188.0,2187.3,7.00167839]
[1750619543822,0.23854458,2187.9,2187.3,2.43]
[1750619544181,0.8061,2187.7,2187.1,7.00802871]
[1750619544400,8.276,2187.6,2187.1,2.4358966]
[1750619544721,8.3345,2187.6,2187.1,5.24092675]
[1750619545424,8.3345,2187.6,2187.1,2.4358966]
[1750619545425,8.276,2187.6,2187.1,2.4358966]
[1750619545726,8.276,2187.6,2187.1,0.0128966]
[1750619545727,0.7742,2187.4,2187.1,0.0128966]
[1750619546030,9.0492,2187.4,2187.1,0.0128966]
[1750619547180,0.7742,2187.2,2187.1,0.0128966]
[1750619547398,1.3827,2187.2,2187.1,0.0128966]
[1750619548659,1.9827,2187.2,2187.1,0.0128966]
[1750619548853,1.3742,2187.2,2187.1,0.0128966]
[1750619549147,19.0482,2187.2,2187.1,0.0128966]
[1750619549939,19.1067,2187.2,2187.1,0.0128966]
[1750619550136,19.6567,2187.2,2187.1,0.0128966]
[1750619550637,34.57186,2187.2,2187.1,0.0128966]
[1750619551142,19.6535,2187.2,2187.1,0.0128966]
[1750619551743,19.595,2187.2,2187.1,0.0128966]
[1750619553959,19.045,2187.2,2187.1,0.0128966]
[1750619554929,10.772,2187.2,2187.1,0.0128966]
[1750619555124,19.044,2187.2,2187.1,0.0128966]
[1750619555359,19.6525,2187.2,2187.1,0.0128966]
[1750619555540,34.56986,2187.2,2187.1,0.0128966]
[1750619556165,11.324,2187.1,2186.5,0.06201805]
[1750619556370,0.55,2186.8,2186.5,0.06201805]
[1750619556667,10.0585,2186.6,2186.5,0.06201805]
[1750619557765,10.73378071,2186.6,2186.5,0.06201805]
[1750619557974,10.6085,2186.6,2186.5,0.06201805]
[1750619558444,26.79310404,2186.6,2186.5,0.06201805]
[1750619558645,0.8646,2186.4,2185.5,2.424]
[1750619558960,10.55,2186.2,2185.5,2.424]
[1750619559137,0.55,2186.0,2185.3,16.32632187]
[1750619559336,8.269,2185.9,2185.3,16.32632187]
[1750619559540,8.269,2185.9,2185.4,4.57577447]
[1750619559741,8.269,2185.9,2185.7,4.5750866]
[1750619559950,8.269,2185.9,2185.6,4.57538309]
[1750619560147,8.269,2185.9,2185.3,0.7634]
[1750619560781,8.269,2185.9,2185.6,4.57524652]
[1750619561069,8.268,2185.8,2185.7,4.57500528]
[1750619561249,8.268,2186.0,2185.9,0.059]
[1750619562290,8.268,2186.0,2185.4,4.57580927]
[1750619562291,8.268,2186.0,2185.7,4.57508871]
[1750619562579,8.268,2186.0,2185.7,4.57518396]
[1750619562737,8.268,2186.0,2185.6,0.059]
[1750619563178,8.268,2186.0,2185.5,4.57559431]
[1750619563478,8.268,2186.0,2185.5,0.059]
[1750619563636,8.268,2186.0,2185.4,4.57571862]
[1750619563969,8.268,2186.0,2185.5,4.5756033]
[1750619564160,8.268,2186.0,2185.5,4.6346033]
[1750619564365,8.268,2186.0,2185.6,4.63438776]
[1750619564694,8.268,2186.0,2185.7,4.63408756]
[1750619564863,0.8061,2186.1,2185.7,0.059]
[1750619565180,8.267,2185.9,2185.6,4.57527481]
[1750619565790,8.267,2185.9,2185.7,0.059]
[1750619565942,8.267,2185.9,2185.7,4.6340868]
[1750619566443,8.267,2185.9,2185.7,4.5750868]
[1750619567171,8.267,2185.9,2185.6,4.57536041]
[1750619567382,8.267,2185.9,2185.4,4.6215567]
[1750619567575,8.267,2185.9,2185.8,4.57498398]
[1750619567882,8.265,2186.0,2185.6,4.57527179]
[1750619568189,8.265,2186.0,2185.5,4.575465]
[1750619568343,8.3235,2186.0,2185.3,7.00090061]
[1750619568651,0.55,2185.9,2185.3,7.00090061]
[1750619568839,0.55,2185.9,2185.3,4.57590061]
[1750619569474,0.55,2185.9,2185.4,4.57570259]
[1750619570059,0.55,2186.0,2185.1,7.00134424]
[1750619570264,8.263,2185.8,2185.4,4.57563537]
[1750619570465,1.3775,2185.7,2185.0,0.7835]
[1750619570651,1.3775,2185.7,2184.9,4.80255458]
[1750619570652,0.55,2185.5,2184.9,0.2257423]
[1750619570853,0.0585,2185.6,2184.9,0.2257423]
[1750619570854,0.55,2185.2,2184.9,0.2257423]
[1750619571440,0.0585,2185.1,2184.9,0.2257423]
[1750619571641,8.262,2185.0,2184.9,0.2257423]
[1750619572178,9.148,2185.0,2184.9,0.2257423]
[1750619572567,19.698,2185.0,2184.9,0.2257423]
[1750619573641,20.15938694,2185.0,2184.9,0.2257423]
[1750619574284,14.54711254,2185.0,2184.9,0.2257423]
[1750619574470,22.80811254,2185.0,2184.9,0.2257423]
[1750619575547,11.0662256,2185.0,2184.9,0.2257423]
[1750619575746,19.3262256,2185.0,2184.9,0.2257423]
[1750619577499,18.4987256,2185.0,2184.9,0.2257423]
[1750619578183,19.0487256,2185.0,2184.9,0.2257423]
[1750619579098,19.9107256,2185.0,2184.9,0.2257423]
[1750619581799,22.3207256,2185.0,2184.9,0.2257423]
[1750619582602,11.6507256,2185.0,2184.9,0.2257423]
[1750619582900,19.9067256,2185.0,2184.9,0.2257423]
[1750619583782,11.6507256,2185.0,2184.9,0.2257423]
[1750619584300,19.9047256,2185.0,2184.9,0.2257423]
[1750619585284,19.0427256,2185.0,2184.9,0.2257423]
[1750619585480,18.4927256,2185.0,2184.9,0.2257423]
[1750619585804,19.0427256,2185.0,2184.9,0.2257423]
[1750619585960,18.9927256,2185.0,2184.9,0.2257423]
[1750619586161,0.2387256,2185.0,2184.9,0.2853423]
[1750619586418,8.4917256,2185.0,2184.9,0.84680107]
[1750619586709,8.4917256,2185.0,2184.9,0.2853423]
[1750619587066,8.4917256,2185.0,2184.9,0.2257423]
[1750619587375,9.0417256,2185.0,2184.9,0.2257423]
[1750619587566,9.9244256,2185.0,2184.9,0.2257423]
[1750619587981,19.9244256,2185.0,2184.9,0.2257423]
[1750619589405,11.6096256,2185.0,2184.9,0.2257423]
[1750619589606,19.8606256,2185.0,2184.9,0.2257423]
[1750619590471,19.9224256,2185.0,2184.9,0.2257423]
[1750619592709,20.5746596,2185.0,2184.9,0.2257423]
[1750619592914,19.9224256,2185.0,2184.9,0.2257423]
[1750619594720,19.3664256,2185.0,2184.9,0.2257423]
[1750619595316,11.1214256,2185.0,2184.9,0.2257423]
[1750619595622,19.9164256,2185.0,2184.9,0.2257423]
[1750619596131,11.6096256,2185.0,2184.9,0.2257423]
[1750619596340,19.8536256,2185.0,2184.9,0.2257423]
[1750619596830,19.0317256,2185.0,2184.9,0.2257423]
[1750619597033,30.31144611,2185.0,2184.9,0.2257423]
[1750619597392,31.07644611,2185.0,2184.9,0.2257423]
[1750619597591,32.37839354,2185.0,2184.9,0.2257423]
[1750619597797,39.63868011,2185.0,2184.9,0.2257423]
[1750619598031,38.98644611,2185.0,2184.9,0.2257423]
[1750619598248,31.07644611,2185.0,2184.9,0.2257423]
[1750619598398,22.83344611,2185.0,2184.9,0.2257423]
[1750619598599,25.24544611,2185.0,2184.9,0.2257423]
[1750619598805,33.48644611,2185.0,2184.9,0.2257423]
[1750619599500,41.39644611,2185.0,2184.9,0.2257423]
[1750619599731,42.04868011,2185.0,2184.9,0.2257423]
[1750619599928,41.39644611,2185.0,2184.9,0.2257423]
[1750619600128,10.55,2184.9,2183.5,0.0596]
[1750619600335,11.76792051,2184.5,2183.6,0.7789]
[1750619600499,20.6958,2184.4,2183.6,0.7789]
[1750619600706,0.7793,2184.1,2183.6,0.7789]
[1750619600898,10.55,2183.9,2183.6,0.7789]
[1750619601202,8.239,2183.8,2183.6,0.7789]
[1750619603137,8.237,2184.1,2183.9,4.57896423]
[1750619603317,10.2392711,2184.3,2183.9,4.57896423]
[1750619603640,10.2392711,2184.3,2184.1,0.7789]
[1750619603641,0.2392711,2184.3,2184.1,0.7789]
[1750619603851,8.4762711,2184.3,2184.1,0.7789]
[1750619604142,0.2392711,2184.3,2184.2,15.35723531]
[1750619604306,0.7793,2185.8,2184.4,4.57771869]
[1750619604307,8.237,2185.1,2184.4,4.57771869]
[1750619604506,8.237,2185.1,2184.5,4.57756641]
[1750619604507,0.23919104,2184.7,2184.5,4.57756641]
[1750619604706,8.237,2185.1,2184.6,5.36199702]
[1750619604930,8.237,2185.1,2184.7,4.57715382]
[1750619604931,10.0,2185.0,2184.7,4.57715382]
[1750619605128,10.0,2185.0,2184.6,0.7845]
[1750619605342,10.23918915,2185.0,2184.6,0.7845]
[1750619605637,10.23918915,2185.0,2184.6,5.36194638]
[1750619605816,10.23918915,2185.0,2184.6,1.44077469]
[1750619606006,8.236,2184.9,2184.6,0.7845]
[1750619606242,8.236,2184.9,2184.3,4.57812571]
[1750619606736,8.236,2184.9,2184.4,0.8441]
[1750619607037,0.55,2184.8,2184.4,0.8441]
[1750619607408,0.55,2184.8,2184.4,5.36238823]
[1750619607606,0.55,2184.8,2184.5,0.0596]
[1750619608444,8.236,2184.9,2184.5,4.57770631]
[1750619608617,8.236,2184.9,2184.6,4.5773171]
[1750619608820,8.236,2184.9,2184.7,0.0596]
[1750619609318,8.231,2184.8,2184.7,0.0596]
[1750619609530,8.231,2184.8,2184.7,4.63688749]
[1750619609726,0.23918915,2185.0,2184.7,4.63688749]
[1750619609927,8.23,2184.9,2184.7,4.57728749]
[1750619610105,8.23,2184.9,2184.7,0.0596]
[1750619610741,10.0,2184.8,2184.7,0.0596]
[1750619611352,10.0,2184.8,2184.4,5.36233342]
[1750619611545,10.0,2184.8,2184.4,6.35638692]
[1750619612040,10.0,2184.8,2184.5,4.57767589]
[1750619612542,10.0,2184.8,2184.4,6.35636064]
[1750619612746,10.0,2184.8,2184.5,4.57769232]
[1750619613109,10.0,2184.8,2184.5,4.57768755]
[1750619614051,10.0,2184.8,2184.5,4.57759696]
[1750619614342,10.0,2184.8,2184.6,4.57743996]
[1750619614515,10.0,2184.8,2184.5,5.67100294]
[1750619615767,8.23,2184.9,2184.5,5.67100294]
[1750619616358,8.222,2184.9,2184.7,0.0596]
[1750619617445,8.222,2184.9,2184.5,5.6710813]
[1750619617650,8.222,2184.9,2184.5,4.63727783]
[1750619617947,8.222,2184.9,2184.5,4.63729988]
[1750619618514,8.222,2184.9,2184.5,4.63720242]
[1750619620766,10.55,2184.8,2184.4,0.7845]
[1750619621052,10.55,2184.8,2184.4,4.63741494]
[1750619621242,10.55,2184.8,2184.3,4.57803609]
[1750619621449,10.55,2184.8,2184.3,4.63763609]
[1750619621755,0.23922909,2184.7,2184.3,4.63763609]
[1750619621943,8.216,2184.6,2184.4,4.5778944]
[1750619622142,8.216,2184.6,2184.3,4.5780239]
[1750619622351,8.216,2184.6,2184.3,4.6376239]
[1750619622745,8.216,2184.6,2184.4,4.57780142]
[1750619622943,8.216,2184.6,2184.4,4.63740142]
[1750619623164,8.216,2184.6,2184.4,0.0596]
[1750619623370,8.216,2184.6,2184.4,4.63741805]
[1750619624558,8.216,2184.6,2184.5,4.63730656]
[1750619625255,0.23922909,2184.7,2184.6,4.57749702]
[1750619625441,0.23922909,2184.7,2184.6,4.63709702]
[1750619625642,0.23922909,2184.7,2184.5,4.57759848]
[1750619625984,0.23922909,2184.7,2184.3,4.57798055]
[1750619626676,0.23922909,2184.7,2184.2,4.57830222]
[1750619626677,0.23922909,2184.7,2184.1,3.1587]
[1750619626678,0.23922909,2184.7,2184.1,5.34313866]
[1750619626858,0.23922909,2184.7,2183.8,0.45337475]
[1750619626859,0.0595,2184.5,2183.8,0.7647]
[1750619627037,10.0595,2184.3,2183.6,3.1587]
[1750619627241,0.0595,2184.0,2183.3,0.7647]
[1750619627540,10.0,2184.3,2183.7,4.57934127]
[1750619627541,8.209,2183.9,2183.7,4.57934127]
[1750619627740,0.55,2183.9,2183.3,5.34487417]
[1750619627942,0.55,2183.9,2183.4,4.57990241]
[1750619628275,8.209,2184.0,2183.6,4.5794788]
[1750619628653,10.0,2184.1,2183.8,0.7647]
[1750619628963,10.0,2184.1,2183.9,4.57884192]
[1750619629736,10.0,2184.1,2183.8,0.7647]
[1750619630140,10.0,2184.1,2183.8,5.3437674]
[1750619630341,10.0,2184.1,2183.8,0.7647]
[1750619630974,10.0,2184.1,2183.8,5.34385616]
[1750619631174,10.0,2184.1,2183.8,5.40345616]
[1750619631567,10.0,2184.1,2183.9,4.57896255]
[1750619631753,10.0,2184.1,2183.9,4.63856255]
[1750619631950,3.1526,2184.6,2184.0,0.0596]
[1750619632150,3.1526,2184.6,2184.3,0.06]
[1750619632362,8.204,2184.5,2184.3,0.06]
[1750619632567,0.55,2184.6,2184.3,0.06]
[1750619632764,8.204,2184.5,2184.3,0.06]
[1750619632975,8.204,2184.6,2184.3,0.06]
[1750619633894,8.204,2184.6,2183.9,5.46515418]
[1750619633895,8.2653,2184.6,2183.9,5.46515418]
[1750619634088,0.55,2184.5,2183.9,6.70687754]
[1750619634446,0.7518,2184.4,2183.9,2.12802336]
[1750619634775,0.0613,2184.3,2183.9,0.8263]
[1750619635347,8.201,2184.2,2183.7,0.8909]
[1750619635546,8.201,2184.2,2183.7,5.4701857]
[1750619635977,8.201,2184.2,2183.7,0.8909]
[1750619636173,8.2623,2184.2,2183.7,0.8909]
[1750619636386,8.2623,2184.2,2183.6,6.95254184]
[1750619636387,8.2623,2184.2,2183.6,2.373]
[1750619636575,0.55,2184.1,2183.5,4.57969618]
[1750619636775,0.6113,2184.1,2183.5,4.57969618]
[1750619636983,0.2392779,2184.0,2183.4,5.4108332]
[1750619637182,0.0613,2183.9,2183.4,0.8309]
[1750619637477,8.199,2183.8,2183.4,0.8309]
[1750619637643,8.199,2183.8,2183.4,5.41091015]
[1750619637849,8.199,2183.8,2183.5,4.57978369]
[1750619638182,8.199,2183.8,2183.4,5.41081077]
[1750619638353,8.199,2183.8,2183.4,5.4108133]
[1750619638549,8.199,2183.8,2183.5,4.57979719]
[1750619639182,8.199,2183.8,2183.6,10.0]
[1750619640283,8.199,2183.8,2183.5,4.57960813]
[1750619640487,8.2603,2183.8,2183.5,4.57960813]
[1750619640884,8.2603,2183.8,2183.4,10.0]
[1750619641048,8.2603,2183.8,2183.3,4.64021034]
[1750619641423,8.195,2183.9,2183.6,4.63945415]
[1750619642282,8.195,2183.9,2183.6,4.57958829]
[1750619642479,8.195,2183.9,2183.4,0.10579374]
[1750619642684,0.2392779,2184.0,2183.8,4.63917391]
[1750619642886,0.2392779,2184.0,2183.8,0.06]
[1750619643385,0.2392779,2184.0,2183.8,4.63913983]
[1750619643599,0.2392779,2184.0,2183.8,0.06]
[1750619644561,0.2392779,2184.0,2183.8,4.63916947]
[1750619644900,0.2392779,2184.0,2183.6,4.63950831]
[1750619645085,0.2392779,2184.0,2183.6,0.06]
[1750619645305,0.7687,2183.9,2183.0,4.58079805]
[1750619645473,0.83,2183.9,2183.3,4.58017122]
[1750619645803,0.83,2183.9,2183.2,4.58033106]
[1750619646014,0.55,2183.8,2183.1,5.39826617]
[1750619646318,0.83,2183.7,2182.7,7.93887173]
[1750619646477,8.189,2183.6,2183.0,4.58068564]
[1750619646818,8.189,2183.6,2183.0,4.58073616]
[1750619647025,8.2503,2183.6,2182.9,4.58095806]
[1750619647226,8.2503,2183.6,2183.0,4.58085001]
[1750619647370,8.2503,2183.6,2183.0,4.58085203]
[1750619647575,0.7687,2183.7,2183.0,0.04580214]
[1750619647876,8.188,2183.6,2183.4,4.57998952]
[1750619648115,8.188,2183.6,2183.3,4.58003864]
[1750619648293,8.188,2183.6,2183.2,0.7577]
[1750619648694,8.188,2183.6,2183.1,4.5804949]
[1750619648876,8.2493,2183.6,2183.1,4.5804949]
[1750619650207,1.3991,2183.8,2183.1,4.5806422]
[1750619650411,8.185,2183.7,2183.2,4.58031645]
[1750619650617,8.185,2183.7,2182.9,4.58106189]
[1750619650802,8.184,2183.6,2183.3,4.58021783]
[1750619652215,0.7878,2183.8,2183.3,0.92207726]
[1750619652511,0.23928067,2183.5,2183.2,0.7527]
[1750619652719,0.30058067,2183.5,2183.0,4.58067938]
[1750619653091,0.30058067,2183.5,2183.1,4.58062381]
[1750619654016,0.30058067,2183.5,2183.0,4.64069152]
[1750619654607,0.23928067,2183.5,2183.2,4.58041544]
[1750619654809,0.23928067,2183.5,2183.1,4.64062524]
[1750619654810,0.23928067,2183.5,2183.3,4.58013785]
[1750619655201,0.23928067,2183.5,2183.2,4.58031532]
[1750619655402,0.23928067,2183.5,2183.2,4.64031532]
[1750619655616,0.0613,2183.4,2183.0,4.58076801]
[1750619656381,0.0613,2183.4,2183.1,4.58062289]
[1750619656735,0.7563,2183.3,2182.8,6.95511147]
[1750619657013,0.7563,2183.3,2182.8,4.58111147]
[1750619657416,8.9333,2183.3,2182.7,0.2257423]
[1750619657600,0.0613,2183.1,2182.7,0.2257423]
[1750619657801,0.0613,2183.1,2182.7,4.80717155]
[1750619658001,0.55,2183.1,2182.7,0.2257423]
[1750619658202,0.0613,2183.0,2182.7,0.2257423]
[1750619659317,0.55,2183.1,2182.7,0.2257423]
[1750619659706,0.0613,2183.0,2182.7,0.2257423]
[1750619660623,8.174,2183.1,2182.9,4.58090373]
[1750619660827,0.7563,2183.3,2182.9,4.58090373]
[1750619661030,0.23928067,2183.5,2183.2,4.58032371]
[1750619661328,0.23928067,2183.5,2182.9,2.412]
[1750619661728,0.23928067,2183.5,2183.0,4.58082508]
[1750619662022,0.30058067,2183.5,2183.0,4.58082508]
[1750619662529,0.0572,2183.4,2183.0,4.58082508]
[1750619662710,0.23928067,2183.5,2183.2,4.58039989]
[1750619662888,8.41128067,2183.5,2183.2,4.58039989]
[1750619663296,0.23928067,2183.5,2183.3,4.63903303]
[1750619663802,0.23928067,2183.5,2183.4,4.58001282]
[1750619664006,0.7711,2183.9,2183.4,4.6257457]
[1750619664329,0.23930079,2183.8,2183.7,4.57935516]
[1750619664899,0.23930079,2183.8,2183.5,4.57969399]
[1750619665209,0.23930079,2183.8,2183.4,4.57990493]
[1750619665401,0.29650079,2183.8,2183.4,4.57990493]
[1750619666008,0.23930079,2183.8,2183.1,7.75996977]
[1750619666232,8.2252,2183.7,2183.3,4.58022161]
[1750619666449,8.2252,2183.7,2183.2,4.58033385]
[1750619667012,8.2252,2183.7,2183.3,4.58022051]
[1750619667492,8.2252,2183.7,2183.1,4.58056841]
[1750619667704,8.168,2183.7,2183.3,4.58020039]
[1750619667902,0.0572,2183.6,2183.3,4.58020039]
[1750619668531,8.168,2183.7,2183.3,4.58020039]
[1750619668837,8.2252,2183.7,2183.1,4.5806422]
[1750619669038,8.2252,2183.7,2183.3,4.58022237]
[1750619669630,8.168,2183.7,2183.2,4.58028328]
[1750619669937,0.0572,2183.6,2183.2,4.58030876]
[1750619671819,0.0572,2183.6,2183.3,4.58021859]
[1750619672545,0.0572,2183.6,2183.2,4.58031972]
[1750619672910,0.0572,2183.6,2183.1,4.63944142]
[1750619673111,0.8061,2183.5,2183.1,0.0589]
[1750619673340,0.8061,2183.5,2183.2,4.58028638]
[1750619673546,0.8061,2183.5,2183.1,4.58052926]
[1750619673738,0.8633,2183.5,2183.1,4.58052926]
[1750619674041,0.8633,2183.5,2183.1,4.5806422]
[1750619675127,0.8633,2183.5,2183.0,4.58074606]
[1750619675331,0.0572,2183.4,2183.0,4.58074606]
[1750619675531,0.0572,2183.4,2182.9,0.0589]
[1750619675717,0.0572,2183.4,2183.0,4.58074039]
[1750619675718,0.55,2183.4,2183.0,4.58074039]
[1750619676040,8.156,2183.4,2183.1,4.63946621]
[1750619676445,8.156,2183.4,2183.1,4.53946621]
[1750619676845,8.156,2183.4,2183.2,4.58043055]
[1750619677444,8.156,2183.4,2183.3,4.58022259]
[1750619677445,18.156,2183.4,2183.3,4.58022259]
[1750619677832,8.156,2183.4,2183.3,4.58022259]
[1750619678143,0.8021,2183.7,2183.5,4.57971312]
[1750619678514,0.8021,2183.7,2183.5,4.47971312]
[1750619678843,0.23930079,2183.8,2183.6,4.57949878]
[1750619679141,0.23930079,2183.8,2183.7,4.57938361]
[1750619680353,0.23930079,2183.8,2183.5,5.48577107]
[1750619680354,0.23930079,2183.8,2183.6,4.57950305]
[1750619680923,0.23930079,2183.8,2183.6,4.57948414]
[1750619681532,0.23930079,2183.8,2183.7,4.57938361]
[1750619681724,10.0,2184.0,2183.7,0.46251766]
[1750619681925,10.0,2184.0,2183.7,4.57932213]
[1750619682336,10.0,2184.0,2183.8,4.57915166]
[1750619682849,10.0,2184.0,2183.8,4.57906424]
[1750619683548,8.149,2184.1,2183.8,4.57906424]
[1750619683720,8.2062,2184.1,2183.6,4.57944014]
[1750619683919,0.0572,2184.0,2183.6,4.57944014]
[1750619684240,0.0572,2184.1,2183.7,4.57937331]
[1750619684413,8.2052,2184.1,2183.7,4.57937331]
[1750619684813,8.2052,2184.1,2183.6,1.0060148]
[1750619684814,8.148,2184.1,2183.6,1.0060148]
[1750619685019,8.38428852,2184.2,2183.8,4.57900785]
[1750619685218,8.38428852,2184.2,2183.6,1.0060148]
[1750619685219,8.38328852,2184.2,2183.6,1.0060148]
[1750619685438,8.38328852,2184.2,2183.8,4.57908074]
[1750619685646,0.29648852,2184.2,2183.8,4.57908074]
[1750619686149,10.0,2184.1,2183.8,4.57915332]
[1750619686647,10.0,2184.1,2183.7,4.57928466]
[1750619686853,10.0572,2184.1,2183.7,4.57928466]
[1750619688623,10.0572,2184.1,2183.6,4.57955538]
[1750619688824,10.0572,2184.1,2183.7,4.57919311]
[1750619689753,10.0572,2184.1,2183.6,4.62527316]
[1750619690962,10.0572,2184.1,2183.7,4.57933522]
[1750619691132,10.0,2184.1,2183.7,4.57938361]
[1750619691338,10.0,2184.1,2183.8,4.57917166]
[1750619692061,10.0,2184.1,2183.7,4.57930397]
[1750619692238,10.0624,2184.1,2183.7,4.57930397]
[1750619692629,0.0624,2184.1,2183.7,4.57930397]
[1750619692831,8.1964,2184.1,2183.7,4.57930397]
[1750619694450,8.134,2184.1,2183.6,4.57949944]
[1750619694655,0.0624,2184.0,2183.6,4.57949944]
[1750619694853,0.0624,2184.0,2183.7,4.57936978]
[1750619696167,10.0,2184.0,2183.7,4.57936978]
[1750619697762,10.0,2184.0,2183.6,4.57944495]
[1750619698159,10.0,2184.0,2183.5,4.57968612]
[1750619698462,10.0,2184.0,2183.6,4.57953127]
[1750619698670,10.0624,2184.0,2183.6,4.57953127]
[1750619698865,10.0,2184.0,2183.7,4.57936997]
[1750619699564,10.0,2184.0,2183.6,4.57948757]
[1750619699769,10.0624,2184.0,2183.6,4.57948757]
[1750619700270,10.0624,2184.0,2183.7,4.57938361]
[1750619700468,10.0624,2184.0,2183.6,4.57948056]
[1750619701347,8.134,2184.1,2183.8,4.57903254]